Workbook

Sheet 종합
A1: 2023.01~2024.03 사옥 신재생 에너지 생산현황
A3: 생산기간 | B3: 신재생에너지 생산량(MWh) | E3: 신재생에너지 사용비율(%) | F3: 비고
B4: 지열발전 | C4: 태양광발전 | D4: 소계
A5: 2023. 01 | B5: 626 | C5: 180.591 | D5: 806.591 | E5: 38
A6: 2023. 02 | B6: 608 | C6: 181.718 | D6: 789.718 | E6: 42
A7: 2023. 03 | B7: 414 | C7: 238.043 | D7: 652.043 | E7: 40
A8: 1/4 합계 | B8: =SUM(B5:B7) -> 1648 | C8: =SUM(C5:C7) -> 600.352 | D8: 2248.352 | E8: =AVERAGE(E5:E7) -> 40
A9: 2022. 4 | B9: 65 | C9: 231.707 | D9: =SUM(B9:C9) -> 296.707 | E9: 27
A10: 2022. 5 | B10: 170 | C10: 237.144 | D10: 407.144 | E10: 32
A11: 2022. 6 | B11: 492 | C11: 243.955 | D11: 735.955 | E11: 40
A12: 2/4 합계 | B12: =SUM(B9:B11) -> 727 | C12: =SUM(C9:C11) -> 712.806 | D12: =SUM(D9:D11) -> 1439.806 | E12: =AVERAGE(E9:E11) -> 33
A13: 2023. 07 | B13: 621 | C13: 189.826 | D13: =SUM(B13:C13) -> 810.826 | E13: 36
A14: 2023. 08 | B14: 694 | C14: 206.579 | D14: 900.579 | E14: 36
A15: 2023. 09 | B15: 363 | C15: 184.426 | D15: 547.426 | E15: 30
A16: 3/4 합계 | B16: =SUM(B13:B15) -> 1678 | C16: =SUM(C13:C15) -> 580.831 | D16: =SUM(D13:D15) -> 2258.831 | E16: =AVERAGE(E13:E15) -> 34
A17: 2023. 10 | B17: 65 | C17: 223.022 | D17: =SUM(B17:C17) -> 288.022 | E17: 24
A18: 2023. 11 | B18: 216 | C18: 168.686 | D18: 384.686 | E18: 13
A19: 2023. 12 | B19: 472 | C19: 150.932 | D19: 622.932 | E19: 31
A20: 4/4 합계 | B20: =SUM(B17:B19) -> 753 | C20: =SUM(C17:C19) -> 542.64 | D20: =SUM(D17:D19) -> 1295.64 | E20: =AVERAGE(E17:E19) -> 22.66666667
A21: 합 계 | B21: =B8+B12+B16+B20 -> 4806 | C21: =C8+C12+C16+C20 -> 2436.629 | D21: 7242.629 | E21: =AVERAGE(E5,E6,E7,E9,E10,E11,E13,E14,E15,E17,E18,E19) -> 32.41666667
A22: 2024. 01 | B22: 537 | C22: 171.045 | D22: 708.045 | E22: 34
A23: 2024. 02 | B23: 450 | C23: 125.941 | D23: 575.941 | E23: 32
A24: 2024. 03 | B24: 381 | C24: 213.806 | D24: 594.806 | E24: 34
A25: 1/4 합계 | B25: =SUM(B22:B24) -> 1368 | C25: =SUM(C22:C24) -> 510.792 | D25: 1878.792 | E25: =AVERAGE(E22:E24) -> 33.33333333
